[Event "*** Titled Tuesday Blitz"]
[Site "Chess.com"]
[Date "2020.10.27"]
[Round "3"]
[White "vugarrasulov"]
[Black "Neftegor"]
[Result "1-0"]
[WhiteElo "2855"]
[BlackElo "2464"]
[TimeControl "180+1"]
[EndTime "10:28:09 PDT"]
[Termination "vugarrasulov won by resignation"]

1. e4 {[%clk 0:03:00.2]} 1... c6 {[%clk 0:03:00]} 2. d4 {[%clk 0:02:59.1]} 2...
d5 {[%clk 0:03:00.9]} 3. Nc3 {[%clk 0:02:59.5]} 3... dxe4 {[%clk 0:02:59.3]} 4.
Nxe4 {[%clk 0:02:59.9]} 4... Nf6 {[%clk 0:03:00.2]} 5. Nxf6+ {[%clk 0:02:57.5]}
5... exf6 {[%clk 0:03:01.1]} 6. Bc4 {[%clk 0:02:56.3]} 6... Bd6 {[%clk
0:03:01.2]} 7. Qe2+ {[%clk 0:02:56.4]} 7... Qe7 {[%clk 0:03:01]} 8. Qxe7+ {[%clk
0:02:55.3]} 8... Kxe7 {[%clk 0:03:01.9]} 9. Ne2 {[%clk 0:02:54.5]} 9... Rd8
{[%clk 0:03:00.6]} 10. c3 {[%clk 0:02:51.4]} 10... Nd7 {[%clk 0:02:55.1]} 11.
Be3 {[%clk 0:02:48.3]} 11... b5 {[%clk 0:02:51.2]} 12. Bb3 {[%clk 0:02:48]}
12... Nb6 {[%clk 0:02:51.7]} 13. O-O-O {[%clk 0:02:47.4]} 13... a5 {[%clk
0:02:50.8]} 14. Rhe1 {[%clk 0:02:46.1]} 14... a4 {[%clk 0:02:44.9]} 15. Bc2
{[%clk 0:02:46.1]} 15... Kf8 {[%clk 0:02:45.3]} 16. a3 {[%clk 0:02:45.4]} 16...
h6 {[%clk 0:02:40.4]} 17. Ng3 {[%clk 0:02:44.8]} 17... Be6 {[%clk 0:02:23.3]}
18. Ne4 {[%clk 0:02:41.8]} 18... Nc4 {[%clk 0:02:09.3]} 19. Nxd6 {[%clk
0:02:41.4]} 19... Rxd6 {[%clk 0:01:48.9]} 20. Bf4 {[%clk 0:02:40]} 20... Rd7
{[%clk 0:01:48.8]} 21. f3 {[%clk 0:02:35.6]} 21... f5 {[%clk 0:01:36.6]} 22. h4
{[%clk 0:02:34.2]} 22... Re8 {[%clk 0:01:12]} 23. Re2 {[%clk 0:02:32.2]} 23...
Nb6 {[%clk 0:01:05]} 24. Rde1 {[%clk 0:02:26.9]} 24... Nd5 {[%clk 0:01:04.9]}
25. Bd2 {[%clk 0:02:27]} 25... f4 {[%clk 0:00:59]} 26. Re5 {[%clk 0:02:25.2]}
26... Rde7 {[%clk 0:00:56.6]} 27. h5 {[%clk 0:02:17.9]} 27... f6 {[%clk
0:00:51.3]} 28. R5e4 {[%clk 0:02:03.6]} 28... Bf7 {[%clk 0:00:49.1]} 29. c4
{[%clk 0:01:56.2]} 29... bxc4 {[%clk 0:00:43]} 30. Bxa4 {[%clk 0:01:56.2]} 30...
Rc7 {[%clk 0:00:19.3]} 31. Rxe8+ {[%clk 0:01:33.2]} 31... Bxe8 {[%clk
0:00:20.2]} 32. Re6 {[%clk 0:01:32.9]} 32... Kf7 {[%clk 0:00:18.4]} 33. Re4
{[%clk 0:01:32.4]} 33... Kf8 {[%clk 0:00:17.4]} 34. Bxf4 {[%clk 0:01:31.3]}
34... Nxf4 {[%clk 0:00:17.3]} 35. Rxf4 {[%clk 0:01:32.2]} 35... Bxh5 {[%clk
0:00:17.6]} 36. Rf5 {[%clk 0:01:32.7]} 36... Bf7 {[%clk 0:00:17.3]} 37. Rc5
{[%clk 0:01:32.9]} 37... Bd5 {[%clk 0:00:17.2]} 38. Bxc6 {[%clk 0:01:26.3]}
38... Rxc6 {[%clk 0:00:12.9]} 39. Rxd5 {[%clk 0:01:26.5]} 39... Ke7 {[%clk
0:00:12.8]} 40. Kc2 {[%clk 0:01:26.4]} 40... Ke6 {[%clk 0:00:10.6]} 41. Rd8
{[%clk 0:01:26.1]} 41... Rb6 {[%clk 0:00:03.9]} 42. Rg8 {[%clk 0:01:24]} 42...
g5 {[%clk 0:00:03.2]} 43. Re8+ {[%clk 0:01:20]} 43... Kd5 {[%clk 0:00:03.6]} 44.
Rd8+ {[%clk 0:01:20.3]} 44... Ke6 {[%clk 0:00:04.5]} 45. a4 {[%clk 0:01:18]}
45... h5 {[%clk 0:00:04.4]} 46. Re8+ {[%clk 0:01:08.5]} 46... Kd5 {[%clk
0:00:04.4]} 47. Rd8+ {[%clk 0:01:08.7]} 47... Ke6 {[%clk 0:00:04.9]} 48. Ra8
{[%clk 0:01:06.1]} 48... h4 {[%clk 0:00:03.6]} 49. a5 {[%clk 0:01:06.1]} 49...
Rb5 {[%clk 0:00:03.2]} 50. a6 {[%clk 0:01:04.5]} 50... Ra5 {[%clk 0:00:03.4]}
51. Kc3 {[%clk 0:01:04.9]} 51... Ra4 {[%clk 0:00:03.7]} 52. a7 {[%clk
0:01:04.8]} 52... Kf7 {[%clk 0:00:03.6]} 53. Rh8 {[%clk 0:01:04]} 1-0

[Event "*** Titled Tuesday Blitz"]
[Site "Chess.com"]
[Date "2020.10.27"]
[Round "3"]
[White "Arfan48"]
[Black "GregShahade"]
[Result "0-1"]
[WhiteElo "2416"]
[BlackElo "2659"]
[TimeControl "180+1"]
[EndTime "10:28:09 PDT"]
[Termination "GregShahade won by checkmate"]

1. e4 {[%clk 0:03:00.9]} 1... e5 {[%clk 0:02:59.9]} 2. Nf3 {[%clk 0:02:59]} 2...
Nc6 {[%clk 0:03:00.4]} 3. d4 {[%clk 0:02:59.4]} 3... exd4 {[%clk 0:03:00.1]} 4.
Nxd4 {[%clk 0:02:59.7]} 4... Nf6 {[%clk 0:03:00.4]} 5. Nxc6 {[%clk 0:02:59.5]}
5... bxc6 {[%clk 0:03:01.3]} 6. e5 {[%clk 0:02:59.9]} 6... Qe7 {[%clk
0:03:01.9]} 7. Qe2 {[%clk 0:03:00.5]} 7... Nd5 {[%clk 0:03:02.2]} 8. c4 {[%clk
0:03:01]} 8... Ba6 {[%clk 0:03:02.3]} 9. Nd2 {[%clk 0:03:01.5]} 9... g6 {[%clk
0:03:01.1]} 10. Nf3 {[%clk 0:03:00.7]} 10... Qb4+ {[%clk 0:03:01.7]} 11. Kd1
{[%clk 0:02:53.7]} 11... Ne7 {[%clk 0:03:01.7]} 12. Qc2 {[%clk 0:02:25]} 12...
c5 {[%clk 0:02:34.5]} 13. Bd3 {[%clk 0:01:54.4]} 13... Bg7 {[%clk 0:02:30.6]}
14. Bd2 {[%clk 0:01:16.7]} 14... Qb6 {[%clk 0:02:29.5]} 15. h4 {[%clk
0:01:14.8]} 15... h6 {[%clk 0:02:24.2]} 16. Rb1 {[%clk 0:00:37]} 16... O-O
{[%clk 0:01:25.3]} 17. h5 {[%clk 0:00:36.5]} 17... g5 {[%clk 0:01:22.1]} 18.
Nxg5 {[%clk 0:00:18.6]} 18... hxg5 {[%clk 0:01:15.4]} 19. Bxg5 {[%clk
0:00:19.5]} 19... Nc6 {[%clk 0:01:01]} 20. f4 {[%clk 0:00:19.8]} 20... Nb4
{[%clk 0:00:57.6]} 21. Qe2 {[%clk 0:00:19.2]} 21... Nxd3 {[%clk 0:00:47.2]} 22.
Qxd3 {[%clk 0:00:20.1]} 22... Qe6 {[%clk 0:00:40]} 23. h6 {[%clk 0:00:13.1]}
23... Bxe5 {[%clk 0:00:30.6]} 24. Qg3 {[%clk 0:00:04.9]} 24... Qg6 {[%clk
0:00:30.8]} 25. Ke2 {[%clk 0:00:03.1]} 25... Bxc4+ {[%clk 0:00:29.7]} 26. Kf3
{[%clk 0:00:02.8]} 26... Bd5+ {[%clk 0:00:26.9]} 27. Kg4 {[%clk 0:00:02.9]}
27... f5+ {[%clk 0:00:25.7]} 28. Kh3 {[%clk 0:00:02.7]} 28... Kh7 {[%clk
0:00:25.1]} 29. Rbd1 {[%clk 0:00:03.3]} 29... Be4 {[%clk 0:00:24.5]} 30. fxe5
{[%clk 0:00:03.4]} 30... Qh5+ {[%clk 0:00:24.1]} 31. Bh4 {[%clk 0:00:02.9]}
31... Rg8 {[%clk 0:00:24.1]} 32. Rxd7+ {[%clk 0:00:02.7]} 32... Kh8 {[%clk
0:00:20.3]} 33. Qg7+ {[%clk 0:00:01.2]} 33... Rxg7 {[%clk 0:00:20.2]} 34. hxg7+
{[%clk 0:00:02.1]} 34... Kg8 {[%clk 0:00:20.4]} 35. Kg3 {[%clk 0:00:02.8]} 35...
Qg4+ {[%clk 0:00:20.6]} 36. Kf2 {[%clk 0:00:03.2]} 36... Qxg2+ {[%clk
0:00:21.3]} 37. Ke3 {[%clk 0:00:04.1]} 37... Qxh1 {[%clk 0:00:19.7]} 38. Bf6
{[%clk 0:00:04.4]} 38... Qf3+ {[%clk 0:00:19.7]} 39. Kd2 {[%clk 0:00:04.6]}
39... Qf2+ {[%clk 0:00:20.1]} 40. Kc3 {[%clk 0:00:04.8]} 40... Qc2# {[%clk
0:00:20.4]} 0-1

[Event "*** Titled Tuesday Blitz"]
[Site "Chess.com"]
[Date "2020.10.27"]
[Round "3"]
[White "Yashasd1995"]
[Black "levallem"]
[Result "1-0"]
[WhiteElo "2539"]
[BlackElo "2308"]
[TimeControl "180+1"]
[EndTime "10:28:10 PDT"]
[Termination "Yashasd1995 won on time"]

1. b3 {[%clk 0:03:00.9]} 1... c6 {[%clk 0:02:26.3]} 2. Bb2 {[%clk 0:03:00.2]}
2... d5 {[%clk 0:02:26.8]} 3. e3 {[%clk 0:03:00.4]} 3... Nf6 {[%clk 0:02:27.3]}
4. f4 {[%clk 0:03:00.5]} 4... Bg4 {[%clk 0:02:26.9]} 5. Be2 {[%clk 0:03:00.7]}
5... Bxe2 {[%clk 0:02:26.3]} 6. Qxe2 {[%clk 0:03:01.6]} 6... g6 {[%clk
0:02:26.1]} 7. Nf3 {[%clk 0:03:00.8]} 7... Bg7 {[%clk 0:02:26.4]} 8. O-O {[%clk
0:03:01.2]} 8... Nbd7 {[%clk 0:02:26.4]} 9. d3 {[%clk 0:03:00.6]} 9... e6 {[%clk
0:02:26.4]} 10. Nbd2 {[%clk 0:03:00.2]} 10... Qb6 {[%clk 0:02:26.3]} 11. c4
{[%clk 0:02:51]} 11... O-O {[%clk 0:02:25.6]} 12. Rae1 {[%clk 0:02:47.3]} 12...
Ne8 {[%clk 0:02:03.5]} 13. Bxg7 {[%clk 0:02:40.2]} 13... Nxg7 {[%clk 0:02:04.4]}
14. Kh1 {[%clk 0:02:37.4]} 14... Rae8 {[%clk 0:02:03.2]} 15. e4 {[%clk 0:02:36]}
15... f5 {[%clk 0:01:59.2]} 16. Rc1 {[%clk 0:02:21.2]} 16... dxe4 {[%clk
0:01:47.4]} 17. dxe4 {[%clk 0:02:20.5]} 17... e5 {[%clk 0:01:37]} 18. c5 {[%clk
0:02:10.5]} 18... Qc7 {[%clk 0:01:17.6]} 19. Qc4+ {[%clk 0:02:08.1]} 19... Kh8
{[%clk 0:01:16.7]} 20. Ng5 {[%clk 0:02:06.8]} 20... Re7 {[%clk 0:01:03.8]} 21.
exf5 {[%clk 0:01:58.3]} 21... Rxf5 {[%clk 0:01:00.6]} 22. Rce1 {[%clk
0:01:56.5]} 22... h6 {[%clk 0:00:48.9]} 23. Ngf3 {[%clk 0:01:40.8]} 23... Rxf4
{[%clk 0:00:44.5]} 24. Qxf4 {[%clk 0:01:40.6]} 24... exf4 {[%clk 0:00:44.9]} 25.
Rxe7 {[%clk 0:01:40.7]} 25... Nf5 {[%clk 0:00:45.3]} 26. Re8+ {[%clk 0:01:32.8]}
26... Kg7 {[%clk 0:00:45.3]} 27. b4 {[%clk 0:01:26.8]} 27... a5 {[%clk 0:00:45]}
28. a3 {[%clk 0:01:26]} 28... Nf6 {[%clk 0:00:44.3]} 29. Re6 {[%clk 0:01:16.4]}
29... axb4 {[%clk 0:00:37.7]} 30. axb4 {[%clk 0:01:15.6]} 30... Nd5 {[%clk
0:00:38]} 31. Rfe1 {[%clk 0:01:10.2]} 31... Nfe3 {[%clk 0:00:37.2]} 32. Ne5
{[%clk 0:01:04.5]} 32... g5 {[%clk 0:00:28.5]} 33. Rg6+ {[%clk 0:01:00]} 33...
Kh7 {[%clk 0:00:28.3]} 34. Rd6 {[%clk 0:00:59.9]} 34... Qe7 {[%clk 0:00:23.7]}
35. Rd7 {[%clk 0:00:59.6]} 35... Qxd7 {[%clk 0:00:22.8]} 36. Nxd7 {[%clk
0:01:00.5]} 36... Nxb4 {[%clk 0:00:23.2]} 37. Nf1 {[%clk 0:00:56]} 37... Nd3
{[%clk 0:00:21.5]} 38. Rb1 {[%clk 0:00:50.7]} 38... Nf5 {[%clk 0:00:17.1]} 39.
Rxb7 {[%clk 0:00:46.6]} 39... Kg6 {[%clk 0:00:17.1]} 40. Rc7 {[%clk 0:00:41.8]}
40... Nb4 {[%clk 0:00:15.5]} 41. Ne5+ {[%clk 0:00:40.7]} 41... Kh5 {[%clk
0:00:14.7]} 42. Nxc6 {[%clk 0:00:36.5]} 42... Nd5 {[%clk 0:00:13.7]} 43. Rd7
{[%clk 0:00:33.7]} 43... Nc3 {[%clk 0:00:13.7]} 44. Nd4 {[%clk 0:00:31.7]} 44...
Nh4 {[%clk 0:00:05.4]} 45. c6 {[%clk 0:00:30.9]} 1-0

[Event "*** Titled Tuesday Blitz"]
[Site "Chess.com"]
[Date "2020.10.27"]
[Round "3"]
[White "Ajedrez_con_German"]
[Black "SergeyShtyka"]
[Result "1/2-1/2"]
[WhiteElo "2535"]
[BlackElo "2325"]
[TimeControl "180+1"]
[EndTime "10:28:14 PDT"]
[Termination "Game drawn by repetition"]

1. Nf3 {[%clk 0:03:00.9]} 1... c5 {[%clk 0:02:59.7]} 2. c4 {[%clk 0:03:00.4]}
2... Nc6 {[%clk 0:02:59.5]} 3. d4 {[%clk 0:03:00.3]} 3... cxd4 {[%clk 0:03:00]}
4. Nxd4 {[%clk 0:03:01.2]} 4... Nf6 {[%clk 0:03:00.4]} 5. g3 {[%clk 0:02:58.5]}
5... e5 {[%clk 0:02:57.2]} 6. Nc2 {[%clk 0:02:58]} 6... d5 {[%clk 0:02:55.2]} 7.
cxd5 {[%clk 0:02:58.9]} 7... Qxd5 {[%clk 0:02:55]} 8. Qxd5 {[%clk 0:02:57.4]}
8... Nxd5 {[%clk 0:02:55.9]} 9. Bg2 {[%clk 0:02:55.5]} 9... Be6 {[%clk
0:02:50.7]} 10. O-O {[%clk 0:02:53.3]} 10... Bc5 {[%clk 0:02:44.5]} 11. a3
{[%clk 0:02:46.6]} 11... a5 {[%clk 0:02:41.8]} 12. Bd2 {[%clk 0:02:46]} 12...
Ke7 {[%clk 0:02:37.4]} 13. Nc3 {[%clk 0:02:46.1]} 13... Nxc3 {[%clk 0:02:27.6]}
14. Bxc3 {[%clk 0:02:47]} 14... f6 {[%clk 0:02:27.5]} 15. Rac1 {[%clk 0:02:31]}
15... Rhd8 {[%clk 0:02:01.9]} 16. Be4 {[%clk 0:02:21.6]} 16... g6 {[%clk
0:01:51.1]} 17. Bg2 {[%clk 0:01:51.8]} 17... Bd5 {[%clk 0:01:31.7]} 18. Bxd5
{[%clk 0:01:49.8]} 18... Rxd5 {[%clk 0:01:31.2]} 19. Kg2 {[%clk 0:01:44.5]}
19... a4 {[%clk 0:01:26.5]} 20. h4 {[%clk 0:01:35.5]} 20... Rad8 {[%clk
0:01:25.2]} 21. h5 {[%clk 0:01:34.8]} 21... Ke6 {[%clk 0:01:23.2]} 22. hxg6
{[%clk 0:01:34.6]} 22... hxg6 {[%clk 0:01:24.1]} 23. Rh1 {[%clk 0:01:35.1]}
23... Nd4 {[%clk 0:01:19.3]} 24. Bxd4 {[%clk 0:01:27.3]} 24... Bxd4 {[%clk
0:01:08.5]} 25. Nxd4+ {[%clk 0:01:15.2]} 25... Rxd4 {[%clk 0:01:08.1]} 26. Rc7
{[%clk 0:00:53.2]} 26... R8d7 {[%clk 0:01:04.2]} 27. Rhc1 {[%clk 0:00:52.3]}
27... Rd2 {[%clk 0:00:58]} 28. R1c2 {[%clk 0:00:36]} 28... b5 {[%clk 0:00:41.9]}
29. R7c6+ {[%clk 0:00:31.7]} 29... Ke7 {[%clk 0:00:30]} 30. R6c5 {[%clk
0:00:27.6]} 30... R2d5 {[%clk 0:00:26.5]} 31. Rxd5 {[%clk 0:00:25.5]} 31... Rxd5
{[%clk 0:00:25.9]} 32. Kf3 {[%clk 0:00:26.1]} 32... f5 {[%clk 0:00:24]} 33. e3
{[%clk 0:00:22.7]} 33... Ke6 {[%clk 0:00:22.9]} 34. g4 {[%clk 0:00:20.6]} 34...
Kd6 {[%clk 0:00:20.1]} 35. gxf5 {[%clk 0:00:20.1]} 35... gxf5 {[%clk 0:00:20.1]}
36. Ke2 {[%clk 0:00:21]} 36... e4 {[%clk 0:00:19.2]} 37. Rc1 {[%clk 0:00:20.5]}
37... Rc5 {[%clk 0:00:18.6]} 38. Rd1+ {[%clk 0:00:20.4]} 38... Ke5 {[%clk
0:00:17.1]} 39. Rd2 {[%clk 0:00:20.5]} 39... Rc1 {[%clk 0:00:17]} 40. Rd8 {[%clk
0:00:18.3]} 40... Rc2+ {[%clk 0:00:16.8]} 41. Rd2 {[%clk 0:00:18.4]} 41... Rc1
{[%clk 0:00:15.8]} 42. Rd8 {[%clk 0:00:17.7]} 42... Rc2+ {[%clk 0:00:16]} 43.
Rd2 {[%clk 0:00:17.7]} 43... Rc1 {[%clk 0:00:12.4]} 1/2-1/2

[Event "*** Titled Tuesday Blitz"]
[Site "Chess.com"]
[Date "2020.10.27"]
[Round "3"]
[White "chesslh19"]
[Black "dopolian"]
[Result "0-1"]
[WhiteElo "2211"]
[BlackElo "2428"]
[TimeControl "180+1"]
[EndTime "10:28:15 PDT"]
[Termination "dopolian won by resignation"]

1. e4 {[%clk 0:03:00.9]} 1... e5 {[%clk 0:02:57.7]} 2. Nf3 {[%clk 0:03:00.2]}
2... Nc6 {[%clk 0:02:58.1]} 3. Bb5 {[%clk 0:03:00.8]} 3... a6 {[%clk 0:02:58.2]}
4. Bxc6 {[%clk 0:03:01.4]} 4... dxc6 {[%clk 0:02:59.1]} 5. O-O {[%clk
0:03:01.7]} 5... f6 {[%clk 0:02:59]} 6. d4 {[%clk 0:03:01.5]} 6... exd4 {[%clk
0:02:59.1]} 7. Nxd4 {[%clk 0:03:02.4]} 7... c5 {[%clk 0:02:59.6]} 8. Nb3 {[%clk
0:03:03]} 8... Qxd1 {[%clk 0:03:00.4]} 9. Rxd1 {[%clk 0:03:03.5]} 9... Bg4
{[%clk 0:03:01.1]} 10. f3 {[%clk 0:03:03.2]} 10... Bd7 {[%clk 0:03:01.3]} 11.
Bf4 {[%clk 0:03:03]} 11... O-O-O {[%clk 0:02:58.8]} 12. Nc3 {[%clk 0:03:03.1]}
12... c4 {[%clk 0:02:54.6]} 13. Nd4 {[%clk 0:02:52.9]} 13... Ne7 {[%clk
0:02:43]} 14. Nd5 {[%clk 0:02:00.5]} 14... Nxd5 {[%clk 0:02:40.9]} 15. exd5
{[%clk 0:02:01.4]} 15... Bc5 {[%clk 0:02:36.3]} 16. Be3 {[%clk 0:01:46.5]} 16...
Rhe8 {[%clk 0:02:25.9]} 17. Bf2 {[%clk 0:01:42]} 17... Re5 {[%clk 0:02:16.2]}
18. Ne6 {[%clk 0:00:42.8]} 18... Bxf2+ {[%clk 0:02:15.2]} 19. Kxf2 {[%clk
0:00:41.4]} 19... Bxe6 {[%clk 0:02:13.2]} 20. dxe6 {[%clk 0:00:42.3]} 20... Rxe6
{[%clk 0:02:09.3]} 21. Rxd8+ {[%clk 0:00:39.2]} 21... Kxd8 {[%clk 0:02:10.2]}
22. Rd1+ {[%clk 0:00:30.8]} 22... Rd6 {[%clk 0:02:08.6]} 23. Re1 {[%clk
0:00:22.9]} 23... Rd2+ {[%clk 0:02:07.3]} 24. Re2 {[%clk 0:00:23.1]} 24... Rxe2+
{[%clk 0:02:05.6]} 25. Kxe2 {[%clk 0:00:24]} 25... Kd7 {[%clk 0:02:05.9]} 26.
Ke3 {[%clk 0:00:24.2]} 26... Kd6 {[%clk 0:02:05]} 27. Kd4 {[%clk 0:00:24.4]}
27... b5 {[%clk 0:02:04.7]} 28. Ke4 {[%clk 0:00:21.7]} 28... g6 {[%clk
0:01:59.5]} 29. c3 {[%clk 0:00:21.3]} 29... c5 {[%clk 0:01:51.5]} 30. Kf4 {[%clk
0:00:17.9]} 30... Ke6 {[%clk 0:01:29.1]} 31. Ke4 {[%clk 0:00:17.6]} 31... f5+
{[%clk 0:01:27.4]} 32. Kf4 {[%clk 0:00:17.9]} 32... Kf6 {[%clk 0:01:28]} 33. h4
{[%clk 0:00:17.9]} 33... h6 {[%clk 0:01:28.6]} 34. g4 {[%clk 0:00:18]} 34... Ke6
{[%clk 0:01:10.2]} 35. Ke3 {[%clk 0:00:14]} 35... fxg4 {[%clk 0:00:55.8]} 36.
fxg4 {[%clk 0:00:14.9]} 36... Ke5 {[%clk 0:00:54.5]} 37. Kf3 {[%clk 0:00:14.6]}
37... h5 {[%clk 0:00:50.3]} 38. gxh5 {[%clk 0:00:13.5]} 38... gxh5 {[%clk
0:00:51.2]} 39. Ke3 {[%clk 0:00:14.1]} 39... Kf5 {[%clk 0:00:51.7]} 40. Kf3
{[%clk 0:00:13.7]} 40... a5 {[%clk 0:00:52.2]} 41. a3 {[%clk 0:00:13.4]} 41...
a4 {[%clk 0:00:50.1]} 42. Ke3 {[%clk 0:00:10.4]} 42... Kg4 {[%clk 0:00:50.2]}
43. Ke4 {[%clk 0:00:09.3]} 43... Kxh4 {[%clk 0:00:50.7]} 44. Kd5 {[%clk
0:00:09.8]} 44... Kg4 {[%clk 0:00:47.1]} 45. Kxc5 {[%clk 0:00:10.7]} 45... h4
{[%clk 0:00:47.3]} 46. Kxb5 {[%clk 0:00:11]} 46... h3 {[%clk 0:00:47.9]} 47.
Kxa4 {[%clk 0:00:09.4]} 47... h2 {[%clk 0:00:48.8]} 48. Kb4 {[%clk 0:00:10]}
48... h1=Q {[%clk 0:00:49]} 49. Kxc4 {[%clk 0:00:10.5]} 49... Qa1 {[%clk
0:00:41.7]} 50. b4 {[%clk 0:00:09.8]} 50... Qxa3 {[%clk 0:00:41.8]} 51. b5
{[%clk 0:00:10]} 51... Qd6 {[%clk 0:00:41.4]} 52. Kb3 {[%clk 0:00:07.5]} 52...
Qc5 {[%clk 0:00:41.3]} 53. c4 {[%clk 0:00:07.4]} 53... Kf4 {[%clk 0:00:41.3]}
0-1

[Event "*** Titled Tuesday Blitz"]
[Site "Chess.com"]
[Date "2020.10.27"]
[Round "3"]
[White "CheckThis4"]
[Black "CM_rui"]
[Result "1-0"]
[WhiteElo "2582"]
[BlackElo "2372"]
[TimeControl "180+1"]
[EndTime "10:28:18 PDT"]
[Termination "CheckThis4 won by checkmate"]

1. d4 {[%clk 0:03:00.9]} 1... Nf6 {[%clk 0:02:59.6]} 2. c4 {[%clk 0:03:00.9]}
2... e6 {[%clk 0:02:59.1]} 3. Nf3 {[%clk 0:03:00.5]} 3... Bb4+ {[%clk
0:02:57.3]} 4. Nbd2 {[%clk 0:02:59.5]} 4... O-O {[%clk 0:02:57.1]} 5. e3 {[%clk
0:02:56.6]} 5... d6 {[%clk 0:02:57.1]} 6. Bd3 {[%clk 0:02:56.3]} 6... Nbd7
{[%clk 0:02:56.3]} 7. O-O {[%clk 0:02:56.1]} 7... Qe7 {[%clk 0:02:56.1]} 8. Nb3
{[%clk 0:02:52.8]} 8... e5 {[%clk 0:02:43.3]} 9. a3 {[%clk 0:02:51.8]} 9... Bxa3
{[%clk 0:02:27.6]} 10. Rxa3 {[%clk 0:02:34.7]} 10... e4 {[%clk 0:02:27.6]} 11.
Be2 {[%clk 0:02:34.8]} 11... exf3 {[%clk 0:02:27.4]} 12. Bxf3 {[%clk 0:02:35.7]}
12... c6 {[%clk 0:02:24.8]} 13. Bd2 {[%clk 0:02:30]} 13... Re8 {[%clk
0:02:21.2]} 14. Qc2 {[%clk 0:02:29]} 14... Nf8 {[%clk 0:02:21.2]} 15. Na5 {[%clk
0:02:15.1]} 15... Qc7 {[%clk 0:02:11.8]} 16. b4 {[%clk 0:02:12]} 16... Ng6
{[%clk 0:02:07]} 17. g3 {[%clk 0:02:08.5]} 17... Bd7 {[%clk 0:01:59.5]} 18. Rc1
{[%clk 0:02:06.3]} 18... Rac8 {[%clk 0:01:39.9]} 19. Bg2 {[%clk 0:02:05.7]}
19... b6 {[%clk 0:01:36.4]} 20. Nb3 {[%clk 0:02:04.5]} 20... Ne7 {[%clk
0:01:25]} 21. Rca1 {[%clk 0:02:02.7]} 21... Ra8 {[%clk 0:01:13.2]} 22. Qa2
{[%clk 0:01:52.9]} 22... Nc8 {[%clk 0:01:03.3]} 23. b5 {[%clk 0:01:52.9]} 23...
d5 {[%clk 0:01:01.2]} 24. bxc6 {[%clk 0:01:50.3]} 24... Bxc6 {[%clk 0:01:00.3]}
25. c5 {[%clk 0:01:45.2]} 25... bxc5 {[%clk 0:00:43.1]} 26. Nxc5 {[%clk
0:01:43.9]} 26... Ne4 {[%clk 0:00:34]} 27. Ba5 {[%clk 0:01:36.7]} 27... Qe7
{[%clk 0:00:30]} 28. Bb4 {[%clk 0:01:32.3]} 28... Qf6 {[%clk 0:00:25.5]} 29.
Nxe4 {[%clk 0:01:27]} 29... dxe4 {[%clk 0:00:26.4]} 30. Bc5 {[%clk 0:01:27.2]}
30... Nb6 {[%clk 0:00:18.1]} 31. Bxb6 {[%clk 0:01:23.9]} 31... axb6 {[%clk
0:00:15.5]} 32. Rxa8 {[%clk 0:01:22.1]} 32... Bxa8 {[%clk 0:00:14.9]} 33. Qxa8
{[%clk 0:01:20.1]} 33... Qe6 {[%clk 0:00:14.2]} 34. Qa2 {[%clk 0:01:16]} 34...
Qd7 {[%clk 0:00:12]} 35. Qb1 {[%clk 0:01:14.2]} 35... Qc6 {[%clk 0:00:09.8]} 36.
Qc1 {[%clk 0:01:09.7]} 36... Qb7 {[%clk 0:00:09.5]} 37. Rb1 {[%clk 0:01:09.1]}
37... b5 {[%clk 0:00:09.7]} 38. Qc5 {[%clk 0:01:07.7]} 38... Rb8 {[%clk
0:00:08.9]} 39. Rb4 {[%clk 0:01:04.2]} 39... Ra8 {[%clk 0:00:04.9]} 40. h3
{[%clk 0:01:02.7]} 40... h6 {[%clk 0:00:03.8]} 41. Rxb5 {[%clk 0:00:58.5]} 41...
Ra1+ {[%clk 0:00:04.4]} 42. Kh2 {[%clk 0:00:58]} 42... Qd7 {[%clk 0:00:03.2]}
43. Rb8+ {[%clk 0:00:55.8]} 43... Kh7 {[%clk 0:00:03.3]} 44. Bxe4+ {[%clk
0:00:55.3]} 44... g6 {[%clk 0:00:03.6]} 45. Bg2 {[%clk 0:00:52.7]} 45... Qe6
{[%clk 0:00:03.3]} 46. Qe5 {[%clk 0:00:50.1]} 46... Qxe5 {[%clk 0:00:01.9]} 47.
dxe5 {[%clk 0:00:50.1]} 47... Kg7 {[%clk 0:00:02.8]} 48. Rb7 {[%clk 0:00:48.2]}
48... h5 {[%clk 0:00:03.7]} 49. e6 {[%clk 0:00:48.4]} 49... Kf6 {[%clk
0:00:03.5]} 50. exf7 {[%clk 0:00:47.7]} 50... Kg7 {[%clk 0:00:04]} 51. Bd5
{[%clk 0:00:47.1]} 51... Kf8 {[%clk 0:00:04.9]} 52. Kg2 {[%clk 0:00:46.8]} 52...
Ra5 {[%clk 0:00:05.8]} 53. Rb8+ {[%clk 0:00:46.7]} 53... Ke7 {[%clk 0:00:05.5]}
54. f8=Q+ {[%clk 0:00:46.8]} 54... Kd7 {[%clk 0:00:06.4]} 55. Qe8+ {[%clk
0:00:46.3]} 55... Kc7 {[%clk 0:00:07.3]} 56. Rc8+ {[%clk 0:00:46.1]} 56... Kd6
{[%clk 0:00:05.6]} 57. Qe6# {[%clk 0:00:45.3]} 1-0